fUST/lending_fUST_20250208
["ID","MTS","AMOUNT","RATE_DAILY","PERIOD"]
[352151879,1738962649399,-500.0,0.00011232,2]
[352151881,1738962649409,-151.0,0.00011232,2]
[352151883,1738962649419,-500.0,0.00011232,2]
[352151885,1738962649428,-500.0,0.00011232,2]
[352151886,1738962649438,-500.0,0.00011232,2]
[352151889,1738962649453,-500.0,0.00011232,2]
[352151891,1738962649464,-500.0,0.00011232,2]
[352151893,1738962649474,-500.0,0.00011232,2]
[352151895,1738962649490,-176.82274771,0.00011232,2]
[352151897,1738962649500,-500.0,0.00011232,2]
[352151899,1738962649509,-811.88,0.00011232,2]
[352151900,1738962649518,-500.0,0.00011232,2]
[352151902,1738962649529,-151.0,0.00011232,2]
[352151904,1738962649539,-214.49,0.00011232,2]
[352151906,1738962649548,-151.0,0.00011232,2]
[352151908,1738962649558,-500.0,0.00011232,2]
[352151910,1738962649569,-1095.57,0.00011232,2]
[352151912,1738962649578,-472.88083876,0.00011232,2]
[352151914,1738962649588,-500.0,0.00011232,2]
[352151916,1738962649597,-315.753272,0.00011232,2]
[352151918,1738962649607,-1081.61,0.00011232,2]
[352151920,1738962649616,-315.753272,0.00011232,2]
[352151922,1738962649625,-500.0,0.00011232,2]
[352151924,1738962649635,-151.0,0.00011232,2]
[352151926,1738962649644,-500.0,0.00011232,2]
[352151928,1738962649654,-500.0,0.00011232,2]
[352151930,1738962649663,-500.0,0.00011232,2]
[352151932,1738962649672,-500.0,0.00011232,2]
[352151934,1738962649681,-657.72,0.00011232,2]
[352151936,1738962649691,-500.0,0.00011232,2]
[352151938,1738962649700,-500.0,0.00011232,2]
[352151940,1738962649709,-500.0,0.00011232,2]
[352151942,1738962649718,-651.601454,0.00011232,2]
[352151944,1738962649728,-1372.29,0.00011232,2]
[352151946,1738962649737,-651.601454,0.00011232,2]
[352151948,1738962649746,-151.0,0.00011232,2]
[352151950,1738962649756,-500.0,0.00011232,2]
[352151952,1738962649766,-500.0,0.00011232,2]
[352151954,1738962649775,-151.0,0.00011232,2]
[352151956,1738962649785,-500.0,0.00011232,2]
[352151958,1738962649794,-500.0,0.00011232,2]
[352151960,1738962649803,-500.0,0.00011232,2]
[352151961,1738962649812,-879.56,0.00011232,2]
[352151964,1738962649822,-500.0,0.00011232,2]
[352151966,1738962649832,-5142.41,0.00011232,2]
[352151967,1738962649842,-1524.91,0.00011232,2]
[352151969,1738962649851,-500.0,0.00011232,2]
[352151971,1738962649862,-699.39,0.00011232,2]
[352151973,1738962649872,-500.0,0.00011232,2]
[352151975,1738962649882,-977.48,0.00011232,2]
[352151977,1738962649892,-500.0,0.00011232,2]
[352151979,1738962649902,-163.46763951,0.00011232,2]
[352151982,1738962649912,-397.23,0.00011232,2]
[352151984,1738962649922,-1198.95,0.00011232,2]
[352151985,1738962649932,-1629.55,0.00011232,2]
[352151987,1738962649942,-643.46,0.00011232,2]
[352151989,1738962649951,-500.0,0.00011232,2]
[352151991,1738962649962,-500.0,0.00011232,2]
[352151993,1738962649971,-500.0,0.00011232,2]
[352151995,1738962649981,-168.87784166,0.00011232,2]
[352151997,1738962649990,-814.97,0.00011232,2]
[352151999,1738962650004,-500.0,0.00011232,2]
[352152002,1738962650015,-2506.37,0.00011232,2]
[352152003,1738962650025,-500.0,0.00011232,2]
[352152005,1738962650035,-500.0,0.00011232,2]
[352152007,1738962650044,-500.0,0.00011232,2]
[352152009,1738962650053,-7452.65,0.00011232,2]
[352152011,1738962650063,-500.0,0.00011232,2]
[352152013,1738962650072,-500.0,0.00011232,2]
[352152015,1738962650082,-3342.84,0.00011232,2]
[352152017,1738962650091,-500.0,0.00011232,2]
[352152019,1738962650101,-500.0,0.00011232,2]
[352152021,1738962650110,-500.0,0.00011232,2]
[352152023,1738962650120,-897.79,0.00011232,2]
[352152025,1738962650129,-500.0,0.00011232,2]
[352152027,1738962650139,-1940.58,0.00011232,2]
[352152029,1738962650149,-500.0,0.00011232,2]
[352152031,1738962650159,-500.0,0.00011232,2]
[352152033,1738962650168,-782.94,0.00011232,2]
[352152035,1738962650178,-4324.35,0.00011232,2]
[352152037,1738962650188,-500.0,0.00011232,2]
[352152039,1738962650198,-500.0,0.00011232,2]
[352152041,1738962650208,-500.0,0.00011232,2]
[352152043,1738962650217,-500.0,0.00011232,2]
[352152045,1738962650227,-500.0,0.00011232,2]
[352152046,1738962650236,-711.25,0.00011232,2]
[352152048,1738962650245,-927.85,0.00011232,2]
[352152050,1738962650255,-642.82,0.00011232,2]
[352152052,1738962650267,-500.0,0.00011232,2]
[352152054,1738962650276,-151.0,0.00011232,2]
[352152056,1738962650286,-500.0,0.00011232,2]
[352152058,1738962650296,-500.0,0.00011232,2]
[352152060,1738962650306,-3853.86,0.00011232,2]
[352152062,1738962650316,-500.0,0.00011232,2]
[352152064,1738962650325,-1709.259368,0.00011232,2]
[352152066,1738962650335,-9180.41,0.00011232,2]
[352152068,1738962650346,-785.47,0.00011232,2]
[352152070,1738962650356,-1709.259368,0.00011232,2]
[352152072,1738962650365,-500.0,0.00011232,2]
[352152074,1738962650374,-500.0,0.00011232,2]
[352152076,1738962650383,-500.0,0.00011232,2]
[352152078,1738962650392,-500.0,0.00011232,2]
[352152080,1738962650401,-500.0,0.00011232,2]
[352152082,1738962650411,-500.0,0.00011232,2]
[352152084,1738962650420,-500.0,0.00011232,2]
[352152086,1738962650429,-500.0,0.00011232,2]
[352152088,1738962650438,-325.52,0.00011232,2]
[352152089,1738962650447,-500.0,0.00011232,2]
[352152091,1738962650456,-500.0,0.00011232,2]
[352152093,1738962650466,-500.0,0.00011232,2]
[352152095,1738962650475,-500.0,0.00011232,2]
[352152097,1738962650490,-500.0,0.00011232,2]
[352152099,1738962650499,-500.0,0.00011232,2]
[352152101,1738962650508,-871.26,0.00011232,2]
[352152103,1738962650518,-500.0,0.00011232,2]
[352152104,1738962650530,-5445.99,0.00011232,2]
[352152105,1738962650539,-500.0,0.00011232,2]
[352152106,1738962650548,-500.0,0.00011232,2]
[352152107,1738962650557,-500.0,0.00011232,2]
[352152108,1738962650570,-500.0,0.00011232,2]
[352152109,1738962650580,-976.93,0.00011232,2]
[352152110,1738962650589,-970.67,0.00011232,2]
[352152111,1738962650598,-843.32,0.00011232,2]
[352152112,1738962650607,-151.0,0.00011232,2]
[352152113,1738962650616,-501.54,0.00011232,2]
[352152114,1738962650625,-500.0,0.00011232,2]
[352152115,1738962650635,-2755.25,0.00011232,2]
[352152116,1738962650644,-500.0,0.00011232,2]
[352152117,1738962650653,-1544.76,0.00011232,2]
[352152118,1738962650662,-500.0,0.00011232,2]
[352152119,1738962650671,-1317.1,0.00011232,2]
[352152120,1738962650682,-500.0,0.00011232,2]
[352152121,1738962650691,-500.0,0.00011232,2]
[352152122,1738962650700,-43804.69,0.00011232,2]
[352152123,1738962650709,-500.0,0.00011232,2]
[352152124,1738962650718,-500.0,0.00011232,2]
[352152125,1738962650727,-500.0,0.00011232,2]
[352152126,1738962650737,-500.0,0.00011232,2]
[352152127,1738962650746,-500.0,0.00011232,2]
[352152128,1738962650755,-500.0,0.00011232,2]
[352152129,1738962650765,-2139.86,0.00011232,2]
[352152130,1738962650774,-505.08567262,0.00011232,2]
[352152131,1738962650784,-16502.59,0.00011232,2]
[352152133,1738962650793,-672.978993,0.00011232,2]
[352152135,1738962650802,-999.27,0.00011232,2]
[352152136,1738962650811,-500.0,0.00011232,2]
[352152138,1738962650820,-672.978993,0.00011232,2]
[352152140,1738962650829,-500.0,0.00011232,2]
[352152142,1738962650838,-500.0,0.00011232,2]
[352152144,1738962650847,-500.0,0.00011232,2]
[352152146,1738962650856,-500.0,0.00011232,2]
[352152148,1738962650865,-1207.9,0.00011232,2]
[352152150,1738962650875,-505.61,0.00011232,2]
[352152152,1738962650885,-500.0,0.00011232,2]
[352152154,1738962650894,-1643.97,0.00011232,2]
[352152156,1738962650903,-500.0,0.00011232,2]
[352152158,1738962650912,-634.83,0.00011232,2]
[352152160,1738962650922,-500.0,0.00011232,2]
[352152163,1738962650931,-500.0,0.00011232,2]
[352152165,1738962650941,-1250.7,0.00011232,2]
[352152166,1738962650950,-699.07,0.00011232,2]
[352152168,1738962650959,-5896.95,0.00011232,2]
[352152170,1738962650968,-620.11,0.00011232,2]
[352152172,1738962650977,-2219.74,0.00011232,2]
[352152174,1738962650986,-528.68,0.00011232,2]
[352152176,1738962650995,-1277.73,0.00011232,2]
[352152178,1738962651004,-500.0,0.00011232,2]
[352152180,1738962651013,-500.0,0.00011232,2]
[352152182,1738962651023,-500.0,0.00011232,2]
[352152184,1738962651033,-529.24,0.00011232,2]
[352152186,1738962651042,-1469.2,0.00011232,2]
[352152188,1738962651051,-830.238234,0.00011232,2]
[352152190,1738962651061,-5599.01,0.00011232,2]
[352152192,1738962651070,-2505.05,0.00011232,2]
[352152194,1738962651079,-500.0,0.00011232,2]
[352152196,1738962651088,-830.238234,0.00011232,2]
[352152198,1738962651098,-618.83,0.00011232,2]
[352152200,1738962651107,-770.29,0.00011232,2]
[352152202,1738962651117,-151.0,0.00011232,2]
[352152204,1738962651126,-568.6231166,0.00011232,2]
[352152206,1738962651135,-151.0,0.00011232,2]
[352152208,1738962651144,-2636.82,0.00011232,2]
[352152210,1738962651154,-500.0,0.00011232,2]
[352152212,1738962651163,-14885.98,0.00011232,2]
[352152214,1738962651172,-19198.2,0.00011232,2]
[352152216,1738962651181,-500.0,0.00011232,2]
[352152218,1738962651190,-500.0,0.00011232,2]
[352152220,1738962651200,-500.0,0.00011232,2]
[352152222,1738962651209,-500.0,0.00011232,2]
[352152224,1738962651218,-1694.48,0.00011232,2]
[352152226,1738962651228,-4047.62720211,0.00011269,2]
[352152228,1738962651237,-151.0,0.000113,2]
[352152230,1738962651246,-151.0,0.000113,2]
[352152232,1738962651256,-532.173,0.000113,2]
[352152234,1738962651266,-151.0,0.000113,2]
[352152236,1738962651276,-151.0,0.000113,2]
[352152238,1738962651285,-151.0,0.000113,2]
[352152240,1738962651295,-500.0,0.00011359,2]
[352152242,1738962651304,-501.85124374,0.00011359,2]
[352152244,1738962651313,-161.92188622,0.00011359,2]
[352152246,1738962651322,-500.0,0.00011359,2]
[352152248,1738962651332,-371.57,0.00011369,2]
[352152250,1738962651341,-528.31,0.00011369,2]
[352152252,1738962651350,-500.0,0.00011369,2]
[352152254,1738962651359,-269.592362,0.00011369,2]
[352152256,1738962651369,-269.592362,0.00011369,2]
[352152258,1738962651378,-333.86,0.00011369,2]
[352152260,1738962651387,-269.592362,0.00011369,2]
[352152262,1738962651396,-269.592362,0.00011369,2]
[352152264,1738962651405,-165.402054,0.00011369,2]
[352152266,1738962651414,-165.402054,0.00011369,2]
[352152268,1738962651423,-176.734843,0.00011369,2]
[352152270,1738962651432,-176.734843,0.00011369,2]
[352152272,1738962651441,-500.0,0.00011369,2]
[352152274,1738962651451,-151.0,0.00011369,2]
[352152276,1738962651460,-500.0,0.00011369,2]
[352152278,1738962651469,-507.85,0.00011369,2]
[352152280,1738962651481,-500.0,0.00011369,2]
[352152282,1738962651491,-500.0,0.00011369,2]
[352152284,1738962651500,-500.0,0.00011369,2]
[352152285,1738962651510,-297.115337,0.00011369,2]
[352152287,1738962651519,-297.115337,0.00011369,2]
[352152289,1738962651529,-607.3,0.00011369,2]
[352152291,1738962651538,-853.45,0.00011369,2]
[352152293,1738962651547,-500.0,0.00011369,2]
[352152296,1738962651558,-500.0,0.00011369,2]
[352152298,1738962651567,-500.0,0.00011369,2]
[352152300,1738962651576,-500.0,0.00011369,2]
[352152302,1738962651585,-156.471295,0.00011369,2]
[352152303,1738962651595,-500.0,0.00011369,2]
[352152305,1738962651604,-610.05,0.00011369,2]
[352152307,1738962651613,-432.633577,0.00011369,2]
[352152309,1738962651622,-500.0,0.00011369,2]
[352152311,1738962651631,-500.0,0.00011369,2]
[352152313,1738962651640,-432.633577,0.00011369,2]
[352152315,1738962651650,-500.0,0.00011369,2]
[352152317,1738962651659,-500.0,0.00011369,2]
[352152319,1738962651668,-316.049395,0.00011369,2]
[352152321,1738962651677,-316.049395,0.00011369,2]
[352152323,1738962651686,-500.0,0.00011369,2]
[352152325,1738962651695,-500.0,0.00011369,2]
[352152327,1738962651705,-500.0,0.00011369,2]
[352152329,1738962651714,-1185.69,0.00011369,2]
[352152331,1738962651723,-500.0,0.00011369,2]
[352152346,1738962651857,-500.0,0.00011369,2]
[352152348,1738962651867,-500.0,0.00011369,2]
[352152350,1738962651877,-500.0,0.00011369,2]
[352152352,1738962651886,-500.0,0.00011369,2]
[352152354,1738962651896,-956.52,0.00011369,2]
[352152356,1738962651905,-151.0,0.00011369,2]
[352152358,1738962651914,-500.0,0.00011369,2]
[352152360,1738962651924,-557.51,0.00011369,2]
[352152362,1738962651933,-639.47,0.00011369,2]
[352152364,1738962651942,-500.0,0.00011369,2]
[352152366,1738962651952,-500.0,0.00011369,2]
[352152368,1738962651962,-151.0,0.00011369,2]
[352152370,1738962651971,-500.0,0.00011369,2]
[352152372,1738962651981,-682.63,0.00011369,2]
[352152374,1738962651990,-151.0,0.00011369,2]
[352152375,1738962651999,-327.654678,0.00011369,2]
[352152377,1738962652008,-351.223628,0.00011369,2]
[352152380,1738962652019,-500.0,0.00011369,2]
[352152382,1738962652028,-1260.39,0.00011369,2]
[352152383,1738962652037,-351.223628,0.00011369,2]
[352152386,1738962652047,-799.91,0.00011369,2]
[352152387,1738962652056,-500.0,0.00011369,2]
[352152389,1738962652066,-500.0,0.00011369,2]
[352152391,1738962652075,-589.88,0.00011369,2]
[352152393,1738962652084,-500.0,0.00011369,2]
[352152395,1738962652093,-500.0,0.00011369,2]
[352152397,1738962652102,-500.0,0.00011369,2]
[352152399,1738962652112,-499.368706,0.00011369,2]
[352152401,1738962652121,-500.0,0.00011369,2]
[352152403,1738962652131,-151.0,0.00011369,2]
[352152405,1738962652140,-499.368706,0.00011369,2]
[352152407,1738962652149,-1201.86,0.00011369,2]
[352152409,1738962652159,-210.675468,0.00011369,2]
[352152411,1738962652168,-500.0,0.00011369,2]
[352152413,1738962652178,-210.675468,0.00011369,2]
[352152415,1738962652187,-706.87,0.00011369,2]
[352152417,1738962652197,-500.0,0.00011369,2]
[352152419,1738962652206,-600.84,0.00011369,2]
[352152421,1738962652215,-742.471922,0.00011369,2]
[352152423,1738962652224,-500.0,0.00011369,2]
[352152425,1738962652234,-500.0,0.00011369,2]
[352152427,1738962652243,-500.0,0.00011369,2]
[352152429,1738962652252,-742.471922,0.00011369,2]
[352152431,1738962652264,-500.0,0.00011369,2]
[352152433,1738962652273,-979.254684,0.00011369,2]
[352152435,1738962652284,-500.0,0.00011369,2]
[352152437,1738962652294,-406.260727,0.00011369,2]
[352152439,1738962652305,-979.254684,0.00011369,2]
[352152441,1738962652314,-406.260727,0.00011369,2]
[352152443,1738962652325,-500.0,0.00011369,2]
[352152445,1738962652335,-500.03680919,0.00011369,2]
[352152447,1738962652344,-500.0,0.00011369,2]
[352152449,1738962652353,-500.0,0.00011369,2]
[352152451,1738962652363,-191.3,0.00011369,2]
[352152453,1738962652372,-500.0,0.00011369,2]
[352152455,1738962652382,-811.88,0.00011369,2]
[352152457,1738962652391,-151.0,0.00011369,2]
[352152459,1738962652401,-151.0,0.00011369,2]
[352152461,1738962652411,-500.0,0.00011369,2]
[352152463,1738962652420,-1095.57,0.00011369,2]
[352152465,1738962652430,-500.0,0.00011369,2]
[352152467,1738962652439,-315.753272,0.00011369,2]
[352152469,1738962652449,-1081.61,0.00011369,2]
[352152471,1738962652458,-315.753272,0.00011369,2]
[352152473,1738962652468,-500.0,0.00011369,2]
[352152475,1738962652478,-214.294755,0.00011369,2]
[352152477,1738962652493,-500.0,0.00011369,2]
[352152479,1738962652502,-500.0,0.00011369,2]
[352152481,1738962652514,-591.26,0.00011369,2]
[352152483,1738962652525,-500.0,0.00011369,2]
[352152485,1738962652535,-657.72,0.00011369,2]
[352152487,1738962652545,-500.0,0.00011369,2]
[352152489,1738962652554,-500.0,0.00011369,2]
[352152491,1738962652565,-500.0,0.00011369,2]
[352152493,1738962652574,-651.601454,0.00011369,2]
[352152495,1738962652584,-1372.29,0.00011369,2]
[352152497,1738962652593,-651.601454,0.00011369,2]
[352152499,1738962652603,-151.0,0.00011369,2]
[352152501,1738962652612,-210.89,0.00011369,2]
[352152503,1738962652622,-500.0,0.00011369,2]
[352152505,1738962652632,-151.0,0.00011369,2]
[352152507,1738962652641,-151.0,0.00011369,2]
[352152509,1738962652651,-500.0,0.00011369,2]
[352152511,1738962652660,-500.0,0.00011369,2]
[352152513,1738962652670,-500.0,0.00011369,2]
[352152515,1738962652680,-879.56,0.00011369,2]
[352152518,1738962652690,-500.0,0.00011369,2]
[352152520,1738962652700,-5142.41,0.00011369,2]
[352152521,1738962652709,-1524.91,0.00011369,2]
[352152524,1738962652720,-500.0,0.00011369,2]
[352152526,1738962652729,-699.39,0.00011369,2]
[352152527,1738962652739,-500.0,0.00011369,2]
[352152530,1738962652749,-977.48,0.00011369,2]
[352152532,1738962652759,-500.0,0.00011369,2]
[352152533,1738962652770,-1198.95,0.00011369,2]
[352152535,1738962652779,-1629.55,0.00011369,2]
[352152537,1738962652789,-643.46,0.00011369,2]
[352152539,1738962652798,-500.0,0.00011369,2]
[352152541,1738962652809,-500.0,0.00011369,2]
[352152543,1738962652819,-500.0,0.00011369,2]
[352152545,1738962652828,-814.97,0.00011369,2]
[352152547,1738962652838,-500.0,0.00011369,2]
[352152549,1738962652847,-2506.37,0.00011369,2]
[352152551,1738962652863,-500.0,0.00011369,2]
[352152553,1738962652872,-500.0,0.00011369,2]
[352152556,1738962652882,-500.0,0.00011369,2]
[352152558,1738962652891,-7452.65,0.00011369,2]
[352152560,1738962652901,-500.0,0.00011369,2]
[352152562,1738962652911,-591.33463904,0.00011369,2]
[352152564,1738962652920,-3342.84,0.00011369,2]
[352152566,1738962652930,-500.0,0.00011369,2]
[352152568,1738962652940,-500.0,0.00011369,2]
[352152570,1738962652950,-500.0,0.00011369,2]
[352152572,1738962652958,-897.79,0.00011369,2]
[352152574,1738962652967,-500.0,0.00011369,2]
[352152576,1738962652977,-500.0,0.00011369,2]
[352152578,1738962652986,-1940.58,0.00011369,2]
[352152580,1738962652995,-782.94,0.00011369,2]
[352152582,1738962653005,-4324.35,0.00011369,2]
[352152584,1738962653016,-500.0,0.00011369,2]
[352152586,1738962653025,-500.0,0.00011369,2]
[352152588,1738962653035,-500.0,0.00011369,2]
[352152590,1738962653044,-500.0,0.00011369,2]
[352152591,1738962653053,-500.0,0.00011369,2]
[352152592,1738962653063,-711.25,0.00011369,2]
[352152593,1738962653073,-927.85,0.00011369,2]
[352152594,1738962653083,-642.82,0.00011369,2]
[352152595,1738962653092,-500.0,0.00011369,2]
[352152596,1738962653102,-500.0,0.00011369,2]
[352152597,1738962653111,-3853.86,0.00011369,2]
[352152599,1738962653120,-500.0,0.00011369,2]
[352152601,1738962653130,-1709.259368,0.00011369,2]
[352152603,1738962653139,-9180.41,0.00011369,2]
[352152605,1738962653149,-785.47,0.00011369,2]
[352152607,1738962653158,-1709.259368,0.00011369,2]
[352152609,1738962653167,-500.0,0.00011369,2]
[352152611,1738962653177,-500.0,0.00011369,2]
[352152613,1738962653186,-500.0,0.00011369,2]
[352152615,1738962653196,-500.0,0.00011369,2]
[352152617,1738962653206,-500.0,0.00011369,2]
[352152619,1738962653215,-500.0,0.00011369,2]
[352152621,1738962653225,-500.0,0.00011369,2]
[352152623,1738962653236,-500.0,0.00011369,2]
[352152625,1738962653246,-500.0,0.00011369,2]
[352152627,1738962653256,-500.0,0.00011369,2]
[352152629,1738962653269,-500.0,0.00011369,2]
[352152631,1738962653279,-500.0,0.00011369,2]
[352152633,1738962653290,-500.0,0.00011369,2]
[352152635,1738962653300,-871.26,0.00011369,2]
[352152637,1738962653311,-500.0,0.00011369,2]
[352152639,1738962653321,-5445.99,0.00011369,2]
[352152641,1738962653331,-500.0,0.00011369,2]
[352152643,1738962653341,-500.0,0.00011369,2]
[352152644,1738962653351,-976.93,0.00011369,2]
[352152646,1738962653361,-970.67,0.00011369,2]
[352152649,1738962653372,-843.32,0.00011369,2]
[352152651,1738962653382,-151.0,0.00011369,2]
[352152653,1738962653392,-501.54,0.00011369,2]
[352152655,1738962653401,-151.0,0.00011369,2]
[352152657,1738962653411,-2755.25,0.00011369,2]
[352152659,1738962653420,-500.0,0.00011369,2]
[352152661,1738962653430,-1544.76,0.00011369,2]
[352152663,1738962653439,-500.0,0.00011369,2]
[352152665,1738962653448,-1317.1,0.00011369,2]
[352152667,1738962653458,-533.1,0.00011369,2]
[352152668,1738962653467,-500.0,0.00011369,2]
[352152670,1738962653477,-43804.69,0.00011369,2]
[352152673,1738962653494,-500.0,0.00011369,2]
[352152675,1738962653509,-500.0,0.00011369,2]
[352152677,1738962653520,-500.0,0.00011369,2]
[352152679,1738962653529,-500.0,0.00011369,2]
[352152681,1738962653539,-625.78,0.00011369,2]
[352152682,1738962653549,-500.0,0.00011369,2]
[352152685,1738962653558,-2139.86,0.00011369,2]
[352152687,1738962653568,-16502.59,0.00011369,2]
[352152689,1738962653578,-999.27,0.00011369,2]
[352152691,1738962653586,-672.978993,0.00011369,2]
[352152693,1738962653596,-672.978993,0.00011369,2]
[352152695,1738962653605,-500.0,0.00011369,2]
[352152697,1738962653615,-505.61,0.00011369,2]
[352152699,1738962653625,-1207.9,0.00011369,2]
[352152701,1738962653634,-500.0,0.00011369,2]
[352152703,1738962653643,-1643.97,0.00011369,2]
[352152705,1738962653653,-500.0,0.00011369,2]
[352152707,1738962653663,-634.83,0.00011369,2]
[352152709,1738962653674,-500.0,0.00011369,2]
[352152711,1738962653684,-500.0,0.00011369,2]
[352152713,1738962653693,-1250.7,0.00011369,2]
[352152715,1738962653704,-699.07,0.00011369,2]
[352152717,1738962653713,-5896.95,0.00011369,2]
[352152719,1738962653722,-620.11,0.00011369,2]
[352152721,1738962653731,-2219.74,0.00011369,2]
[352152723,1738962653741,-528.68,0.00011369,2]
[352152725,1738962653750,-1277.73,0.00011369,2]
[352152727,1738962653760,-500.0,0.00011369,2]
[352152729,1738962653771,-500.0,0.00011369,2]
[352152731,1738962653780,-1469.2,0.00011369,2]
[352152733,1738962653790,-830.238234,0.00011369,2]
[352152735,1738962653800,-5599.01,0.00011369,2]
[352152737,1738962653809,-830.238234,0.00011369,2]
[352152739,1738962653821,-2505.05,0.00011369,2]
[352152741,1738962653831,-500.0,0.00011369,2]
[352152743,1738962653841,-830.238234,0.00011369,2]
[352152745,1738962653850,-830.238234,0.00011369,2]
[352152747,1738962653860,-618.83,0.00011369,2]
[352152749,1738962653869,-770.29,0.00011369,2]
[352152751,1738962653879,-151.0,0.00011369,2]
[352152753,1738962653889,-151.0,0.00011369,2]
[352152755,1738962653898,-151.0,0.00011369,2]
[352152757,1738962653908,-151.0,0.00011369,2]
[352152760,1738962653917,-2636.82,0.00011369,2]
[352152762,1738962653927,-516.52,0.00011369,2]
[352152764,1738962653937,-14885.98,0.00011369,2]
[352152766,1738962653946,-19198.2,0.00011369,2]
[352152768,1738962653956,-500.0,0.00011369,2]
[352152770,1738962653966,-507.96,0.00011369,2]
[352152771,1738962653975,-500.0,0.00011369,2]
[352152774,1738962653985,-500.0,0.00011369,2]
[352152775,1738962653995,-1694.48,0.00011369,2]
[352152777,1738962654004,-150.0,0.00011396,2]
[352152779,1738962654013,-537.0,0.00011396,2]
[352152781,1738962654023,-1975.0,0.00011396,2]
[352152784,1738962654032,-2296.0,0.00011396,2]
[352152785,1738962654041,-396.0,0.00011396,2]
[352152788,1738962654050,-404.458,0.00011396,2]
[352152790,1738962654060,-151.0,0.000114,2]
[352152792,1738962654070,-13264.03974987,0.00011438,2]
[352152794,1738962654080,-154.5151656,0.00011452,2]
[352152796,1738962654090,-215.7177124,0.00011452,2]
[352152798,1738962654099,-151.0,0.000115,2]
[352152800,1738962654108,-151.0,0.000115,2]
[352152802,1738962654118,-500.0,0.00011506,2]
[352152803,1738962654127,-151.0,0.00011506,2]
[352152806,1738962654137,-269.592362,0.00011506,2]
[352152807,1738962654147,-269.592367,0.00011506,2]
[352152809,1738962654157,-165.402054,0.00011506,2]
[352152811,1738962654167,-165.402054,0.00011506,2]
[352152814,1738962654177,-176.734843,0.00011506,2]
[352152815,1738962654187,-176.734843,0.00011506,2]
[352152818,1738962654196,-500.0,0.00011506,2]
[352152820,1738962654206,-151.0,0.00011506,2]
[352152821,1738962654215,-214.0,0.00011506,2]
[352152823,1738962654225,-507.85,0.00011506,2]
[352152825,1738962654234,-453.15,0.00011506,2]
[352152827,1738962654244,-500.0,0.00011506,2]
[352152829,1738962654253,-500.0,0.00011506,2]
[352152831,1738962654263,-297.115337,0.00011506,2]
[352152833,1738962654272,-297.115337,0.00011506,2]
[352152836,1738962654282,-607.3,0.00011506,2]
[352152837,1738962654291,-853.45,0.00011506,2]
[352152839,1738962654301,-500.0,0.00011506,2]
[352152841,1738962654310,-500.0,0.00011506,2]
[352152844,1738962654320,-150.82,0.00011506,2]
[352152846,1738962654329,-500.0,0.00011506,2]
[352152848,1738962654338,-156.471295,0.00011506,2]
[352152850,1738962654348,-500.0,0.00011506,2]